[Event "WYCC U16 Open 2019"]
[Site "Mumbai"]
[Date "2019.10.07"]
[Round "7.1"]
[White "Niemann, Hans Moke"]
[Black "Makarian, Rudik"]
[Result "1-0"]
[ECO "A61"]
[WhiteElo "2439"]
[BlackElo "2386"]
[Annotator "ChessBase"]
[PlyCount "122"]
[EventDate "2019.10.02"]
[EventType "swiss"]
[EventCountry "IND"]
[SourceTitle "playchess.com"]
[Source "ChessBase"]
[SourceQuality "1"]
[TimeControl "40/5400+30:1800+30"]

1. d4 {[%emt 0:00:00]} Nf6 {[%emt 0:00:00]} 2. c4 {[%emt 0:00:00]} e6 {[%emt 0:00:00]} 3. Nf3 {[%emt 0:00:00]} c5 {[%emt 0:00:53]} 4. d5 {[%emt 0:00:00]} exd5 {[%emt 0:00:20]} 5. cxd5 {[%emt 0:02:21]} g6 {[%emt 0:00:05]} 6. Nc3 {[%emt 0:00:32]} d6 {[%emt 0:00:10]} 7. Bf4 {[%emt 0:00:48]} Bg7 {[%emt 0:00:04]} 8. h3 {[%emt 0:00:05]} O-O {[%emt 0:00:03]} 9. e3 {[%emt 0:00:08]} Ne8 {[%emt 0:00:01]} 10. Be2 {[%emt 0:00:34]} Nd7 {[%emt 0:00:04]} 11. O-O {[%emt 0:00:06]} Ne5 {[%emt 0:00:01]} 12. Nd2 {[%emt 0:00:39]} Rb8 {[%emt 0:00:25]} 13. a4 {[%emt 0:02:21]} b6 {[%emt 0:00:30]} 14. Bg3 {[%emt 0:01:05]} f5 {[%emt 0:05:06]} 15. Rb1 {[%emt 0:06:16]} Nc7 {[%emt 0:07:09]} 16. Nb5 {[%emt 0:07:31]} Nxb5 {[%emt 0:18:10]} 17. axb5 {[%emt 0:00:05]} Bd7 {[%emt 0:02:36]} 18. f4 {[%emt 0:04:03]} Nf7 {[%emt 0:00:14]} 19. Qb3 {[%emt 0:00:10]} a6 {[%emt 0:14:16]} 20. bxa6 {[%emt 0:06:05]} b5 {[%emt 0:00:18]} 21. Qa3 {[%emt 0:00:58]} Qb6 {[%emt 0:03:32]} 22. b4 {[%emt 0:00:05]} Ra8 {[%emt 0:10:39]} 23. bxc5 {[%emt 0:00:08]} dxc5 {[%emt 0:00:04]} 24. Nc4 {[%emt 0:00:51]} Qxa6 {[%emt 0:03:17]} 25. Qxa6 {[%emt 0:00:27]} Rxa6 {[%emt 0:00:01]} 26. Ne5 {[%emt 0:00:07]} Rd6 {[%emt 0:00:34]} 27. Nxd7 {[%emt 0:01:30]} Rxd7 {[%emt 0:00:05]} 28. Rfc1 {[%emt 0:12:07]} c4 {[%emt 0:07:26]} 29. Rxb5 {[%emt 0:01:01]} Nd6 {[%emt 0:00:41]} 30. Rb6 {[%emt 0:04:52]} Re8 {[%emt 0:03:32]} 31. Bf2 {[%emt 0:00:38]} Bd4 {[%emt 0:05:31]} 32. exd4 {[%emt 0:00:11]} Rxe2 {[%emt 0:00:02]} 33. Be1 {[%emt 0:00:28]} Ne4 {[%emt 0:14:08]} 34. Bb4 {[%emt 0:00:02]} c3 {[%emt 0:00:34]} 35. Bxc3 {[%emt 0:00:31]} Nxc3 {[%emt 0:00:11]} 36. Rxc3 {[%emt 0:00:03]} Re4 {[%emt 0:01:09]} 37. Rc4 {[%emt 0:01:08]} Kf7 {[%emt 0:02:38]} 38. g3 {[%emt 0:03:23]} Rxd5 {[%emt 0:02:55]} 39. Rb7+ {[%emt 0:00:03]} Re7 {[%emt 0:00:35]} 40. Rxe7+ {[%emt 0:00:07]} Kxe7 {[%emt 0:00:02]} 41. Kf2 {[%emt 0:30:05]} Ra5 {[%emt 0:31:49]} 42. g4 {[%emt 0:07:52]} Kd6 {[%emt 0:00:00]} 43. Kg3 {[%emt 0:00:00]} Ra3+ {[%emt 0:00:00]} 44. Kh4 {[%emt 0:00:00]} Rf3 {[%emt 0:00:00]} 45. d5 {[%emt 0:00:00]} Kxd5 {[%emt 0:00:00]} 46. Rc7 {[%emt 0:00:00]} Rxf4 {[%emt 0:00:00]} 47. Kg5 {[%emt 0:00:00]} Ra4 {[%emt 0:00:00]} 48. Rxh7 {[%emt 0:00:00]} fxg4 {[%emt 0:00:00]} 49. Rh4 {[%emt 0:00:00]} Ra3 {[%emt 0:00:00]} 50. hxg4 {[%emt 0:00:00]} Ra4 {[%emt 0:00:00]} 51. Rh6 {[%emt 0:00:00]} Ke6 {[%emt 0:00:00]} 52. Rxg6+ {[%emt 0:00:00]} Kf7 {[%emt 0:00:00]} 53. Kh6 {[%emt 0:00:00]} Ra1 {[%emt 0:00:00]} 54. Rg7+ {[%emt 0:00:00]} Kf8 {[%emt 0:00:00]} 55. g5 Ra6+ {[%emt 0:04:13]} 56. Kh7 {[%emt 0:00:00]} Ra5 {[%emt 0:00:02]} 57. Rg8+ {[%emt 0:00:00]} Ke7 {[%emt 0:00:24]} 58. g6 {[%emt 0:00:00]} Ra1 {[%emt 0:01:51]} 59. Kg7 {[%emt 0:00:00]} Ra7 {[%emt 0:00:46]} 60. Rf8 {[%emt 0:00:00]} Ke6+ {[%emt 0:00:09]} 61. Kh8 {[%emt 0:00:00]} Kd5 1-0

[Event "WYCC U16 Open 2019"]
[Site "Mumbai"]
[Date "2019.10.07"]
[Round "7.2"]
[White "Aronyak Ghosh"]
[Black "Moksh Amit Doshi"]
[Result "1/2-1/2"]
[ECO "A01"]
[WhiteElo "2380"]
[BlackElo "2328"]
[Annotator "ChessBase"]
[PlyCount "90"]
[EventDate "2019.10.02"]
[EventType "swiss"]
[EventCountry "IND"]
[SourceTitle "playchess.com"]
[Source "ChessBase"]
[SourceQuality "1"]
[TimeControl "40/5400+30:1800+30"]

1. b3 d5 2. e3 e5 3. Bb2 Bd6 4. Nf3 f6 5. c4 c6 6. Nc3 Ne7 7. d4 e4 8. Nd2 O-O 9. Be2 f5 10. g3 Be6 11. Qc1 Nd7 12. Ba3 Nf6 13. cxd5 cxd5 14. Bxd6 Qxd6 15. Nb5 Qd7 16. Qc7 Rfc8 17. Qxd7 Bxd7 18. Na3 Rc3 19. O-O Rac8 20. Ndb1 R3c7 21. Nd2 Rc3 22. Ndb1 R3c7 23. Nd2 a6 24. b4 Ba4 25. Bd1 b5 26. Bxa4 bxa4 27. b5 axb5 28. Nxb5 Rc2 29. Nb1 g5 30. N1a3 Re2 31. Rfe1 Rxe1+ 32. Rxe1 f4 33. exf4 gxf4 34. f3 exf3 35. Rxe7 fxg3 36. hxg3 Ng4 37. Nc7 Rf8 38. Kf1 Nh2+ 39. Kf2 Ng4+ 40. Kf1 f2 41. Rg7+ Kxg7 42. Ne6+ Kf7 43. Nxf8 Kxf8 44. Nb5 Ke7 45. Nc3 Kd6 1/2-1/2

[Event "WYCC U16 Open 2019"]
[Site "Mumbai"]
[Date "2019.10.07"]
[Round "7.3"]
[White "Daghli, Arash"]
[Black "Soto, Miguel Angel"]
[Result "0-1"]
[ECO "A57"]
[WhiteElo "2387"]
[BlackElo "2283"]
[Annotator "ChessBase"]
[PlyCount "91"]
[EventDate "2019.10.02"]
[EventType "swiss"]
[EventCountry "IND"]
[SourceTitle "playchess.com"]
[Source "ChessBase"]
[SourceQuality "1"]
[TimeControl "40/5400+30:1800+30"]

1. d4 {[%emt 0:03:35]} Nf6 {[%emt 0:00:00]} 2. c4 {[%emt 0:00:08]} c5 {[%emt 0:01:21]} 3. d5 {[%emt 0:01:27]} b5 {[%emt 0:00:36]} 4. cxb5 {[%emt 0:00:14]} a6 {[%emt 0:00:20]} 5. b6 {[%emt 0:06:35]} d6 {[%emt 0:01:42]} 6. Nc3 {[%emt 0:00:27]} Nbd7 {[%emt 0:00:54]} 7. e4 {[%emt 0:02:51]} g6 {[%emt 0:01:29]} 8. Nf3 {[%emt 0:00:31]} Bg7 {[%emt 0:01:04]} 9. Bd3 {[%emt 0:01:42]} O-O {[%emt 0:01:26]} 10. h3 {[%emt 0:00:26]} Nxb6 {[%emt 0:04:26]} 11. O-O {[%emt 0:00:08]} Ne8 {[%emt 0:01:40]} 12. Bg5 {[%emt 0:01:35]} h6 {[%emt 0:03:42]} 13. Be3 {[%emt 0:00:26]} Nc7 {[%emt 0:02:36]} 14. Qd2 {[%emt 0:00:23]} Kh7 {[%emt 0:00:52]} 15. Rfe1 {[%emt 0:08:02]} a5 {[%emt 0:12:52]} 16. h4 {[%emt 0:02:07]} Ba6 {[%emt 0:02:56]} 17. h5 {[%emt 0:00:11]} Bxd3 {[%emt 0:07:35]} 18. Qxd3 {[%emt 0:00:02]} Na6 {[%emt 0:01:35]} 19. a3 {[%emt 0:12:49]} Nd7 {[%emt 0:05:51]} 20. Bf4 Qc7 {[%emt 0:16:48]} 21. Nd2 {[%emt 0:05:19]} Nb6 {[%emt 0:12:04]} 22. Rac1 {[%emt 0:06:49]} c4 {[%emt 0:02:15]} 23. Qf1 {[%emt 0:02:58]} Rab8 {[%emt 0:06:36]} 24. Be3 {[%emt 0:03:03]} Rfc8 {[%emt 0:04:26]} 25. Bxb6 {[%emt 0:01:11]} Qxb6 {[%emt 0:04:10]} 26. Nxc4 {[%emt 0:00:12]} Qc7 {[%emt 0:01:34]} 27. Na4 {[%emt 0:01:35]} Nc5 {[%emt 0:00:37]} 28. Nxc5 {[%emt 0:04:56]} Qxc5 {[%emt 0:01:13]} 29. Qe2 {[%emt 0:06:06]} Qb5 {[%emt 0:01:00]} 30. Rc2 {[%emt 0:00:02]} a4 {[%emt 0:00:46]} 31. Rec1 {[%emt 0:00:29]} Rc5 {[%emt 0:00:29]} 32. Qf3 {[%emt 0:01:12]} Rbc8 {[%emt 0:00:33]} 33. Qxf7 {[%emt 0:01:00]} gxh5 {[%emt 0:00:12]} 34. Ne3 {[%emt 0:04:52]} Rxc2 {[%emt 0:00:02]} 35. Rxc2 {[%emt 0:00:03]} Rxc2 {[%emt 0:00:12]} 36. Nxc2 {[%emt 0:03:29]} Qxb2 {[%emt 0:00:16]} 37. Ne3 {[%emt 0:08:37]} Qxa3 {[%emt 0:01:05]} 38. Kh2 {[%emt 0:03:12]} Qc3 {[%emt 0:01:05]} 39. Nf5 {[%emt 0:01:40]} Qf6 {[%emt 0:00:36]} 40. Qe8 {[%emt 0:00:01]} a3 {[%emt 0:00:26]} 41. Nxe7 {[%emt 0:30:52]} Bf8 {[%emt 0:09:05]} 42. Nf5 {[%emt 0:00:00]} a2 {[%emt 0:03:06]} 43. Qd7+ {[%emt 0:00:00]} Kh8 {[%emt 0:00:20]} 44. Ne7 Kg7 45. Qe8 Kh7 46. Ng6 0-1

[Event "WYCC U16 Open 2019"]
[Site "Mumbai"]
[Date "2019.10.07"]
[Round "7.4"]
[White "Kushagra Mohan"]
[Black "Pogosyan, Stefan"]
[Result "1/2-1/2"]
[ECO "B85"]
[WhiteElo "2309"]
[BlackElo "2364"]
[Annotator "ChessBase"]
[PlyCount "70"]
[EventDate "2019.10.02"]
[EventType "swiss"]
[EventCountry "IND"]
[SourceTitle "playchess.com"]
[Source "ChessBase"]
[SourceQuality "1"]
[TimeControl "40/5400+30:1800+30"]

1. e4 c5 2. Nf3 Nc6 3. d4 cxd4 4. Nxd4 e6 5. Nc3 Qc7 6. f4 a6 7. Be2 d6 8. Be3 Nf6 9. O-O Be7 10. Qe1 O-O 11. Rd1 Nxd4 12. Bxd4 e5 13. fxe5 dxe5 14. Qg3 Bc5 15. Bxc5 Qxc5+ 16. Kh1 Qe7 17. Bc4 Be6 18. Qxe5 Ng4 19. Nd5 Qh4 20. Qf4 g5 21. Qg3 Qxg3 22. hxg3 Bxd5 23. Rxd5 Ne3 24. Rxg5+ Kh8 25. Rxf7 Nxc4 26. Rxb7 Ne3 27. Rgg7 Rf1+ 28. Kh2 h5 29. g4 Nxg4+ 30. Kg3 Re8 31. Rh7+ Kg8 32. Rbg7+ Kf8 33. Ra7 Kg8 34. Rag7+ Kf8 35. Ra7 Kg8 1/2-1/2

[Event "WYCC U16 Open 2019"]
[Site "Mumbai"]
[Date "2019.10.07"]
[Round "7.5"]
[White "Bilych, Olexiy"]
[Black "Stork, Oliver"]
[Result "1-0"]
[ECO "B13"]
[WhiteElo "2281"]
[BlackElo "2314"]
[Annotator "ChessBase"]
[PlyCount "57"]
[EventDate "2019.10.02"]
[EventType "swiss"]
[EventCountry "IND"]
[SourceTitle "playchess.com"]
[Source "ChessBase"]
[SourceQuality "1"]
[TimeControl "40/5400+30:1800+30"]

1. e4 {[%emt 0:00:00]} c6 {[%emt 0:00:00]} 2. d4 {[%emt 0:00:00]} d5 {[%emt 0:00:00]} 3. exd5 {[%emt 0:00:00]} cxd5 {[%emt 0:00:00]} 4. Bd3 {[%emt 0:00:00]} Nc6 {[%emt 0:00:00]} 5. c3 {[%emt 0:00:00]} Qc7 {[%emt 0:00:01]} 6. Na3 {[%emt 0:00:00]} a6 {[%emt 0:04:14]} 7. Nc2 {[%emt 0:00:00]} Nf6 {[%emt 0:00:33]} 8. h3 {[%emt 0:00:00]} g6 {[%emt 0:02:43]} 9. Bg5 {[%emt 0:05:19]} Bg7 {[%emt 0:04:52]} 10. Ne3 {[%emt 0:03:18]} Be6 {[%emt 0:23:07]} 11. Ne2 {[%emt 0:01:44]} O-O {[%emt 0:01:19]} 12. O-O {[%emt 0:03:03]} Nh5 {[%emt 0:09:07]} 13. g4 {[%emt 0:14:38]} f6 {[%emt 0:12:01]} 14. Bh4 {[%emt 0:00:09]} Nf4 {[%emt 0:00:31]} 15. Nxf4 {[%emt 0:01:57]} Qxf4 {[%emt 0:00:05]} 16. Bg3 {[%emt 0:01:40]} Qh6 {[%emt 0:00:05]} 17. Kg2 {[%emt 0:04:07]} Rfd8 {[%emt 0:05:57]} 18. f4 {[%emt 0:08:42]} Bf8 {[%emt 0:01:55]} 19. h4 {[%emt 0:06:38]} Bf7 {[%emt 0:08:43]} 20. h5 {[%emt 0:04:37]} Qg7 {[%emt 0:06:17]} 21. g5 {[%emt 0:09:59]} fxg5 {[%emt 0:07:24]} 22. h6 {[%emt 0:02:38]} Qf6 {[%emt 0:07:38]} 23. Ng4 {[%emt 0:00:07]} Qe6 {[%emt 0:01:20]} 24. fxg5 {[%emt 0:01:27]} Qd7 {[%emt 0:01:46]} 25. Ne5 {[%emt 0:05:17]} Nxe5 {[%emt 0:00:10]} 26. Bxe5 {[%emt 0:00:05]} Be6 {[%emt 0:02:03]} 27. Qf3 {[%emt 0:00:24]} Rac8 {[%emt 0:01:06]} 28. Bxg6 {[%emt 0:00:31]} Bh3+ {[%emt 0:00:31]} 29. Kh2 {[%emt 0:00:10]} 1-0

[Event "WYCC U16 Open 2019"]
[Site "Mumbai"]
[Date "2019.10.07"]
[Round "7.7"]
[White "Harshavardhan G B"]
[Black "Kacharava, Nikolozi"]
[Result "1/2-1/2"]
[ECO "D20"]
[WhiteElo "2362"]
[BlackElo "2428"]
[Annotator "ChessBase"]
[PlyCount "133"]
[EventDate "2019.10.02"]
[EventType "swiss"]
[EventCountry "IND"]
[SourceTitle "playchess.com"]
[Source "ChessBase"]
[SourceQuality "1"]
[TimeControl "40/5400+30:1800+30"]

1. d4 d5 2. c4 dxc4 3. e4 e5 4. Nf3 exd4 5. Bxc4 Nc6 6. O-O Be6 7. Bxe6 fxe6 8. Qb3 Qd7 9. Qxb7 Rb8 10. Qa6 Nf6 11. Nbd2 Bd6 12. b3 O-O 13. Bb2 e5 14. Rac1 Rb6 15. Qe2 Na5 16. Nc4 Nxc4 17. Qxc4+ Kh8 18. Qe2 Qg4 19. Rce1 Rc6 20. h3 Qd7 21. Rc1 Rxc1 22. Bxc1 Qc6 23. Re1 Nd7 24. Bd2 Qc2 25. Ba5 Qxe2 26. Rxe2 Nc5 27. Bb4 Nd3 28. Bxd6 cxd6 29. Rc2 Nb4 30. Rc7 Nxa2 31. Rxa7 Nc3 32. Nd2 h6 33. Rd7 Ne2+ 34. Kf1 Nf4 35. g3 Nxh3 36. f3 Ng5 37. Ke2 Rc8 38. Nc4 Rf8 39. Nd2 Rc8 40. f4 exf4 41. gxf4 Nh3 42. f5 Rc3 43. Rxd6 Re3+ 44. Kd1 Nf2+ 45. Kc2 Nxe4 46. Rxd4 Nxd2 47. Rxd2 Rf3 48. Rd5 h5 49. b4 h4 50. Rd4 h3 51. Rh4+ Kg8 52. Kd2 Rb3 53. Ke1 Kf7 54. Kf2 Kf6 55. Kg1 Kxf5 56. Kh2 g5 57. Rxh3 Rxb4 58. Rf3+ Kg4 59. Ra3 Kf4 60. Kg2 g4 61. Rc3 Rb2+ 62. Kg1 Ra2 63. Rb3 Re2 64. Ra3 Kg5 65. Rb3 Kh4 66. Ra3 g3 67. Ra8 1/2-1/2

[Event "WYCC U16 Open 2019"]
[Site "Mumbai"]
[Date "2019.10.07"]
[Round "7.8"]
[White "Cardoso Cardoso, Jose Gabriel"]
[Black "Gharibyan, Mamikon"]
[Result "0-1"]
[ECO "A22"]
[WhiteElo "2313"]
[BlackElo "2388"]
[Annotator "ChessBase"]
[PlyCount "54"]
[EventDate "2019.10.02"]
[EventType "swiss"]
[EventCountry "IND"]
[SourceTitle "playchess.com"]
[Source "ChessBase"]
[SourceQuality "1"]
[TimeControl "40/5400+30:1800+30"]

1. c4 e5 2. Nc3 Nf6 3. g3 d5 4. cxd5 Nxd5 5. Bg2 Nb6 6. Nf3 Nc6 7. O-O Be7 8. b3 O-O 9. Bb2 Be6 10. Rc1 f6 11. Re1 Qd7 12. Ne4 Rfd8 13. d3 a5 14. Qc2 a4 15. Red1 axb3 16. axb3 Nd5 17. d4 Ndb4 18. Qb1 Bxb3 19. Rd2 Ba2 20. Qa1 Qg4 21. h3 Qg6 22. dxe5 Bd5 23. Rxd5 Rxa1 24. Rxd8+ Bxd8 25. Rxa1 Qxe4 26. exf6 Qc2 27. Bd4 Nxd4 0-1

[Event "WYCC U16 Open 2019"]
[Site "Mumbai"]
[Date "2019.10.07"]
[Round "7.9"]
[White "Wachinger, Nikolas"]
[Black "Sankalp Gupta"]
[Result "1/2-1/2"]
[ECO "C15"]
[WhiteElo "2297"]
[BlackElo "2369"]
[Annotator "ChessBase"]
[PlyCount "69"]
[EventDate "2019.10.02"]
[EventType "swiss"]
[EventCountry "IND"]
[SourceTitle "playchess.com"]
[Source "ChessBase"]
[SourceQuality "1"]
[TimeControl "40/5400+30:1800+30"]

1. e4 e6 2. d4 d5 3. Nc3 Bb4 4. Nge2 dxe4 5. a3 Bxc3+ 6. Nxc3 Nf6 7. Bg5 Bd7 8. Nxe4 Bc6 9. Nxf6+ gxf6 10. Bf4 Rg8 11. Bg3 Nd7 12. c4 Nb6 13. Qd2 Qd7 14. b3 O-O-O 15. O-O-O Be4 16. f3 Bf5 17. Bh4 Qe7 18. Qb4 Qxb4 19. axb4 Nd7 20. g4 Bg6 21. b5 Rde8 22. Be2 e5 23. d5 f5 24. gxf5 Bxf5 25. Rhg1 Rg6 26. Bf2 e4 27. fxe4 Bxe4 28. Kd2 Ne5 29. Rg3 Rh6 30. h3 a6 31. Be3 Rd6 32. Bc5 Rh6 33. Be3 Rd6 34. Bc5 Rh6 35. Be3 1/2-1/2

[Event "WYCC U16 Open 2019"]
[Site "Mumbai"]
[Date "2019.10.07"]
[Round "7.10"]
[White "Avila Pavas, Santiago"]
[Black "Turgut, Aydin"]
[Result "1-0"]
[ECO "A25"]
[WhiteElo "2406"]
[BlackElo "2281"]
[Annotator "ChessBase"]
[PlyCount "107"]
[EventDate "2019.10.02"]
[EventType "swiss"]
[EventCountry "IND"]
[SourceTitle "playchess.com"]
[Source "ChessBase"]
[SourceQuality "1"]
[TimeControl "40/5400+30:1800+30"]

1. c4 {[%emt 0:00:00]} e5 {[%emt 0:01:40]} 2. Nc3 {[%emt 0:00:00]} Nc6 {[%emt 0:00:16]} 3. g3 {[%emt 0:00:00]} Nf6 {[%emt 0:03:15]} 4. Bg2 {[%emt 0:00:31]} g6 {[%emt 0:02:28]} 5. e3 {[%emt 0:03:36]} Bg7 {[%emt 0:09:56]} 6. Nge2 {[%emt 0:01:01]} O-O {[%emt 0:01:09]} 7. O-O {[%emt 0:00:35]} d6 {[%emt 0:04:07]} 8. d3 {[%emt 0:06:31]} Be6 {[%emt 0:01:21]} 9. Nd5 {[%emt 0:00:09]} Qd7 {[%emt 0:07:34]} 10. Nec3 {[%emt 0:00:30]} Ne8 {[%emt 0:07:22]} 11. Rb1 {[%emt 0:02:43]} f5 {[%emt 0:02:08]} 12. Qa4 {[%emt 0:10:54]} Nd8 {[%emt 0:08:40]} 13. Qxd7 {[%emt 0:00:28]} Bxd7 {[%emt 0:00:02]} 14. f4 {[%emt 0:14:04]} c6 {[%emt 0:07:03]} 15. Nb4 {[%emt 0:00:07]} Ne6 {[%emt 0:03:16]} 16. Nc2 {[%emt 0:02:18]} Rc8 {[%emt 0:06:11]} 17. Rd1 {[%emt 0:16:13]} N8c7 {[%emt 0:09:01]} 18. Bd2 {[%emt 0:02:16]} Rfd8 {[%emt 0:03:38]} 19. Rbc1 {[%emt 0:01:34]} Be8 {[%emt 0:01:35]} 20. Ne1 {[%emt 0:04:38]} Bf6 {[%emt 0:05:40]} 21. Nf3 {[%emt 0:09:40]} Bf7 {[%emt 0:06:11]} 22. b4 {[%emt 0:03:50]} h6 {[%emt 0:01:42]} 23. h4 {[%emt 0:04:40]} Kg7 {[%emt 0:00:02]} 24. Bh3 {[%emt 0:00:45]} exf4 {[%emt 0:03:53]} 25. gxf4 {[%emt 0:00:09]} d5 {[%emt 0:01:03]} 26. cxd5 {[%emt 0:00:57]} cxd5 {[%emt 0:01:11]} 27. d4 {[%emt 0:00:43]} Ne8 {[%emt 0:01:04]} 28. Be1 {[%emt 0:01:28]} Nd6 {[%emt 0:01:32]} 29. Ne5 {[%emt 0:02:49]} Ne4 {[%emt 0:00:44]} 30. Nxe4 {[%emt 0:00:50]} dxe4 {[%emt 0:00:05]} 31. Nxf7 {[%emt 0:01:51]} Kxf7 {[%emt 0:01:04]} 32. h5 {[%emt 0:00:41]} Ng7 {[%emt 0:00:35]} 33. hxg6+ {[%emt 0:00:12]} Kxg6 {[%emt 0:00:02]} 34. Bf1 {[%emt 0:02:13]} Ne8 {[%emt 0:00:23]} 35. b5 {[%emt 0:02:15]} Be7 {[%emt 0:00:28]} 36. Bc4 {[%emt 0:01:03]} Ba3 {[%emt 0:00:23]} 37. Rc3 {[%emt 0:00:21]} Bb2 {[%emt 0:01:10]} 38. Rc2 {[%emt 0:00:12]} Nd6 {[%emt 0:00:07]} 39. Rg2+ {[%emt 0:00:16]} Kh7 {[%emt 0:00:32]} 40. Be6 {[%emt 0:00:07]} Rc1 {[%emt 0:00:42]} 41. Rxc1 {[%emt 0:33:02]} Bxc1 {[%emt 0:30:09]} 42. Kf2 {[%emt 0:01:14]} Rf8 {[%emt 0:00:00]} 43. Bb4 {[%emt 0:00:00]} Rf6 {[%emt 0:00:00]} 44. d5 {[%emt 0:00:00]} Nxb5 {[%emt 0:00:00]} 45. Be7 {[%emt 0:00:00]} Rxe6 {[%emt 0:00:00]} 46. dxe6 {[%emt 0:00:00]} Nc7 {[%emt 0:00:00]} 47. Rg1 {[%emt 0:00:00]} Bb2 {[%emt 0:00:00]} 48. Rb1 {[%emt 0:00:00]} Bg7 {[%emt 0:00:00]} 49. Rxb7 {[%emt 0:00:00]} Nxe6 {[%emt 0:00:00]} 50. Bf6 {[%emt 0:00:00]} a5 {[%emt 0:00:00]} 51. Ra7 {[%emt 0:00:00]} Kg6 {[%emt 0:00:00]} 52. Bxg7 {[%emt 0:00:00]} Nxg7 {[%emt 0:00:00]} 53. Rxa5 {[%emt 0:00:00]} Ne8 {[%emt 0:00:00]} 54. a4 {[%emt 0:00:00]} 1-0

[Event "WYCC U16 Open 2019"]
[Site "Mumbai"]
[Date "2019.10.07"]
[Round "7.12"]
[White "Talukdar, Rohan"]
[Black "Lumachi, Gabriele"]
[Result "1/2-1/2"]
[ECO "C65"]
[WhiteElo "2369"]
[BlackElo "2207"]
[Annotator "ChessBase"]
[PlyCount "147"]
[EventDate "2019.10.02"]
[EventType "swiss"]
[EventCountry "IND"]
[SourceTitle "playchess.com"]
[Source "ChessBase"]
[SourceQuality "1"]
[TimeControl "40/5400+30:1800+30"]

1. e4 e5 2. Nf3 Nc6 3. Bb5 Nf6 4. d3 d6 5. c3 a6 6. Ba4 g6 7. d4 Bd7 8. O-O Bg7 9. Re1 O-O 10. Bg5 h6 11. Bh4 g5 12. Bg3 Nxe4 13. Rxe4 f5 14. Re2 f4 15. dxe5 Bg4 16. exd6 Bxf3 17. gxf3 Qxd6 18. Qxd6 cxd6 19. Bxc6 bxc6 20. Nd2 a5 21. a4 d5 22. Ra3 Rfb8 23. Rb3 c5 24. Re6 fxg3 25. hxg3 Rxb3 26. Nxb3 c4 27. Nd4 Bxd4 28. cxd4 Rb8 29. Ra6 Rxb2 30. Rxa5 c3 31. Rc5 c2 32. Kg2 Ra2 33. a5 Rxa5 34. Rxc2 Ra4 35. Rd2 Kg7 36. Kf1 Kg6 37. Ke2 h5 38. Ke3 Kf5 39. Rd3 Ra8 40. Rb3 Re8+ 41. Kd2 h4 42. Rb6 hxg3 43. fxg3 g4 44. fxg4+ Ke4 45. g5 Kxd4 46. g6 Ke5 47. Ke3 Kf5+ 48. Kf3 Rg8 49. Rd6 Kg5 50. g4 Rf8+ 51. Kg3 Rg8 52. Kf3 Rf8+ 53. Kg3 Rg8 54. Rxd5+ Kxg6 55. Rd6+ Kg5 56. Rd5+ Kg6 57. Rd6+ Kg5 58. Ra6 Rb8 59. Ra5+ Kg6 60. Ra6+ Kg5 61. Ra5+ Kg6 62. Kh4 Rh8+ 63. Rh5 Rxh5+ 64. gxh5+ Kg7 65. Kg5 Kh7 66. Kg4 Kh6 67. Kh4 Kh7 68. Kg5 Kg8 69. Kh6 Kh8 70. Kg6 Kg8 71. h6 Kh8 72. Kf5 Kg8 73. Kg6 Kh8 74. h7 1/2-1/2

[Event "WYCC U16 Open 2019"]
[Site "Mumbai"]
[Date "2019.10.07"]
[Round "7.13"]
[White "Ammar, Sedrani"]
[Black "Tarlabasi, Emirhan"]
[Result "1-0"]
[ECO "D02"]
[WhiteElo "2053"]
[BlackElo "2365"]
[Annotator "ChessBase"]
[PlyCount "115"]
[EventDate "2019.10.02"]
[EventType "swiss"]
[EventCountry "IND"]
[SourceTitle "playchess.com"]
[Source "ChessBase"]
[SourceQuality "1"]
[TimeControl "40/5400+30:1800+30"]

1. d4 {[%emt 0:00:19]} d5 {[%emt 0:00:00]} 2. Nf3 {[%emt 0:00:08]} Nf6 {[%emt 0:00:28]} 3. Bf4 {[%emt 0:00:18]} c5 {[%emt 0:00:36]} 4. e3 {[%emt 0:00:10]} Nc6 {[%emt 0:00:19]} 5. Nc3 {[%emt 0:02:23]} a6 {[%emt 0:10:38]} 6. dxc5 {[%emt 0:08:16]} e6 {[%emt 0:10:50]} 7. Bd3 {[%emt 0:00:45]} Bxc5 {[%emt 0:06:25]} 8. O-O {[%emt 0:00:49]} O-O {[%emt 0:07:27]} 9. e4 {[%emt 0:01:09]} h6 {[%emt 0:09:58]} 10. exd5 {[%emt 0:03:43]} exd5 {[%emt 0:00:26]} 11. h3 {[%emt 0:02:11]} Re8 {[%emt 0:03:04]} 12. a3 {[%emt 0:05:34]} Ne4 {[%emt 0:08:57]} 13. Bxe4 {[%emt 0:04:19]} dxe4 {[%emt 0:00:43]} 14. Qxd8 {[%emt 0:00:30]} Nxd8 {[%emt 0:00:18]} 15. Nd2 {[%emt 0:00:16]} f5 {[%emt 0:06:27]} 16. Nb3 {[%emt 0:01:27]} Ba7 {[%emt 0:02:04]} 17. Nd5 {[%emt 0:07:08]} Ne6 {[%emt 0:01:43]} 18. Be3 {[%emt 0:03:24]} b5 {[%emt 0:15:03]} 19. Rad1 {[%emt 0:02:12]} Bb7 {[%emt 0:07:25]} 20. Bxa7 {[%emt 0:06:10]} Rxa7 {[%emt 0:00:29]} 21. Nb6 {[%emt 0:00:30]} Re7 {[%emt 0:03:24]} 22. Na5 {[%emt 0:02:37]} Kf7 {[%emt 0:03:20]} 23. Nxb7 {[%emt 0:01:48]} Raxb7 {[%emt 0:00:47]} 24. Nc8 {[%emt 0:00:02]} Rbc7 {[%emt 0:00:37]} 25. Nxe7 {[%emt 0:00:03]} Kxe7 {[%emt 0:00:03]} 26. Rd2 {[%emt 0:00:59]} g6 {[%emt 0:00:57]} 27. Re1 {[%emt 0:00:30]} Kf6 {[%emt 0:00:26]} 28. f3 {[%emt 0:00:49]} Ke5 {[%emt 0:00:33]} 29. fxe4 {[%emt 0:00:36]} f4 {[%emt 0:00:28]} 30. Rd5+ {[%emt 0:01:28]} Kf6 {[%emt 0:00:01]} 31. c3 {[%emt 0:00:20]} Rc4 {[%emt 0:00:49]} 32. Kf2 {[%emt 0:01:21]} g5 {[%emt 0:00:40]} 33. Kf3 {[%emt 0:02:10]} h5 {[%emt 0:00:22]} 34. Rd7 {[%emt 0:03:25]} a5 {[%emt 0:00:41]} 35. e5+ {[%emt 0:01:08]} Kg6 {[%emt 0:00:01]} 36. Re7 {[%emt 0:01:11]} g4+ {[%emt 0:00:58]} 37. hxg4 {[%emt 0:00:56]} Ng5+ {[%emt 0:00:19]} 38. Kf2 {[%emt 0:00:06]} hxg4 {[%emt 0:00:08]} 39. e6 {[%emt 0:00:55]} Kf6 {[%emt 0:00:33]} 40. Re8 {[%emt 0:01:12]} Ne4+ {[%emt 0:00:57]} 41. Kf1 {[%emt 0:31:02]} f3 {[%emt 0:24:15]} 42. gxf3 {[%emt 0:00:00]} Nd2+ {[%emt 0:02:12]} 43. Kf2 {[%emt 0:00:00]} Nxf3 {[%emt 0:00:39]} 44. Re3 {[%emt 0:00:00]} Ng5 {[%emt 0:00:29]} 45. Kg2 {[%emt 0:00:00]} Rc6 {[%emt 0:01:29]} 46. e7 {[%emt 0:00:00]} Ne6 {[%emt 0:00:03]} 47. Rb8 {[%emt 0:00:00]} Kxe7 {[%emt 0:00:05]} 48. Rxb5 {[%emt 0:00:00]} a4 {[%emt 0:01:00]} 49. Rb4 {[%emt 0:00:00]} Kf6 {[%emt 0:00:35]} 50. Rxa4 {[%emt 0:00:00]} Kf5 {[%emt 0:03:43]} 51. Kg3 {[%emt 0:00:00]} Rd6 {[%emt 0:00:24]} 52. Rae4 {[%emt 0:00:00]} Ng5 {[%emt 0:00:29]} 53. Re5+ {[%emt 0:00:00]} Kf6 {[%emt 0:00:23]} 54. Kxg4 {[%emt 0:00:00]} Nf7 {[%emt 0:00:01]} 55. Rf5+ {[%emt 0:00:00]} Kg6 {[%emt 0:00:08]} 56. Kf4 {[%emt 0:00:00]} Nh6 {[%emt 0:00:07]} 57. Rg3+ {[%emt 0:00:00]} Kh7 {[%emt 0:00:02]} 58. Rh5 {[%emt 0:00:00]} 1-0

[Event "WYCC U16 Open 2019"]
[Site "Mumbai"]
[Date "2019.10.07"]
[Round "7.14"]
[White "Mis, Mieszko"]
[Black "Akshit Kumar J"]
[Result "1-0"]
[ECO "D11"]
[WhiteElo "2345"]
[BlackElo "1912"]
[Annotator "ChessBase"]
[PlyCount "55"]
[EventDate "2019.10.02"]
[EventType "swiss"]
[EventCountry "IND"]
[SourceTitle "playchess.com"]
[Source "ChessBase"]
[SourceQuality "1"]
[TimeControl "40/5400+30:1800+30"]

1. d4 d5 2. c4 c6 3. Nf3 Nf6 4. Qb3 e6 5. g3 Nbd7 6. Bg2 Bd6 7. O-O O-O 8. Nc3 dxc4 9. Qxc4 Qe7 10. e4 e5 11. Re1 Rd8 12. Qe2 h6 13. h3 a5 14. Be3 a4 15. a3 exd4 16. Nxd4 Nc5 17. Qc4 Bd7 18. e5 Bxe5 19. Bf4 b5 20. Qf1 Nce4 21. Bxe4 Bxh3 22. Qxh3 Rxd4 23. Bxe5 Rxe4 24. Nxe4 Qxe5 25. Nxf6+ Qxf6 26. Re2 Rd8 27. Rae1 Kh7 28. Qh4 1-0